fUST/lending_fUST_20250228
["ID","MTS","AMOUNT","RATE_DAILY","PERIOD"]
[354812493,1740712242750,-273.93,0.00058,30]
[354812494,1740712242763,-239.31993206,0.00058073,15]
[354812536,1740712243422,-262.43878919,0.00058073,15]
[354812537,1740712243432,-500.0,0.00058073,14]
[354812538,1740712243441,-500.0,0.00058073,15]
[354812539,1740712243450,-500.0,0.00058073,15]
[354812540,1740712243460,-500.0,0.00058073,14]
[354812541,1740712243469,-500.0,0.00058076,120]
[354812542,1740712243479,-405.64903874,0.00058076,2]
[354812558,1740712246418,-94.35096126,0.00058076,2]
[354812559,1740712246428,-42.02621637,0.00058076,120]
[354812560,1740712246482,159.0,0.00053,120]
[354812561,1740712246519,159.0,0.00053699,120]
[354812562,1740712246911,-139.99707711,0.00056096,120]
[354812563,1740712246928,-19.00292289,0.00056096,120]
[354812564,1740712246939,-500.0,0.00057977,120]
[354812565,1740712246950,-457.97378363,0.00058076,120]
[354812566,1740712246961,-500.0,0.00058076,120]
[354812567,1740712246971,-504.21434736,0.00058076,120]
[354812568,1740712246982,-260.35732399,0.00058076,120]
[354812569,1740712246992,-500.0,0.00058076,120]
[354812570,1740712247003,-505.33488261,0.00058076,120]
[354812571,1740712247013,-500.0,0.00058076,120]
[354812572,1740712247022,-502.3962296,0.00058076,120]
[354812573,1740712247032,-500.0,0.00058076,120]
[354812574,1740712247041,-500.0,0.00058076,120]
[354812575,1740712247050,-522.53,0.00058076,120]
[354812576,1740712247062,-500.0,0.00058076,120]
[354812577,1740712247075,-500.0,0.00058076,120]
[354812578,1740712247084,-500.0,0.00058076,120]
[354812579,1740712247094,-500.0,0.00058076,120]
[354812580,1740712247103,-500.0,0.00058076,120]
[354812581,1740712247113,-574.28048632,0.00058076,120]
[354812582,1740712247122,-500.0,0.00058076,120]
[354812583,1740712247132,-505.59308026,0.00058076,120]
[354812584,1740712247141,-500.0,0.00058076,120]
[354812585,1740712247152,-525.66281093,0.00058076,120]
[354812586,1740712247162,-500.0,0.00058076,120]
[354812587,1740712247171,-500.0,0.00058076,120]
[354812588,1740712247180,-500.0,0.00058076,120]
[354812589,1740712247189,-500.0,0.00058076,120]
[354812590,1740712247199,-500.0,0.00058076,120]
[354812591,1740712247208,-200.0,0.00058076,7]
[354812592,1740712247218,-507.69617214,0.00058076,120]
[354812593,1740712247227,-500.0,0.00058076,120]
[354812594,1740712247237,-500.0,0.00058076,120]
[354812595,1740712247247,-500.0,0.00058076,120]
[354812596,1740712247256,-500.0,0.00058076,120]
[354812597,1740712247266,-504.50995265,0.00058076,120]
[354812598,1740712247276,-387.7987415,0.00058076,120]
[354812599,1740712247285,-500.0,0.00058076,120]
[354812600,1740712247295,-500.0,0.00058076,120]
[354812601,1740712247305,-505.97615533,0.00058076,120]
[354812602,1740712247315,-536.6405902,0.00058076,120]
[354812603,1740712247324,-500.0,0.00058076,120]
[354812604,1740712247334,-500.0,0.00058076,120]
[354812605,1740712247343,-500.0,0.00058076,120]
[354812606,1740712247353,-500.0,0.00058076,120]
[354812607,1740712247363,-505.90988303,0.00058076,120]
[354812608,1740712247373,-500.0,0.00058076,120]
[354812609,1740712247383,-500.0,0.00058076,120]
[354812610,1740712247393,-500.0,0.00058078,120]
[354812611,1740712247403,-501.64705555,0.00058078,120]
[354812612,1740712247412,-500.0,0.00058078,120]
[354812613,1740712247422,-500.0,0.00058078,120]
[354812614,1740712247432,-500.0,0.00058078,120]
[354812615,1740712247441,-500.0,0.00058078,120]
[354812616,1740712247450,-500.0,0.00058078,120]
[354812617,1740712247460,-500.0,0.00058078,120]
[354812618,1740712247469,-500.0,0.00058078,120]
[354812619,1740712247479,-500.0,0.00058078,120]
[354812620,1740712247489,-500.0,0.00058078,120]
[354812621,1740712247498,-500.0,0.00058078,120]
[354812622,1740712247508,-637.0298435,0.00058078,120]
[354812623,1740712247518,-500.0,0.00058078,120]
[354812624,1740712247527,-500.0,0.00058078,120]
[354812625,1740712247537,-504.70376806,0.00058078,120]
[354812626,1740712247546,-500.0,0.00058078,120]
[354812627,1740712247556,-500.0,0.00058078,120]
[354812628,1740712247565,-500.0,0.00058078,120]
[354812629,1740712247575,-500.0,0.00058078,120]
[354812630,1740712247584,-500.0,0.00058078,120]
[354812631,1740712247593,-500.0,0.00058078,120]
[354812632,1740712247602,-500.0,0.00058078,120]
[354812633,1740712247613,-500.0,0.00058078,120]
[354812634,1740712247622,-500.0,0.00058078,120]
[354812635,1740712247631,-500.0,0.00058078,120]
[354812636,1740712247642,-500.0,0.00058078,120]
[354812637,1740712247652,-500.0,0.00058078,120]
[354812638,1740712247661,-150.41863329,0.00058078,120]
[354812639,1740712247671,-500.0,0.00058078,120]
[354812640,1740712247679,-500.0,0.00058078,120]
[354812641,1740712247689,-200.96467453,0.00058078,120]
[354812642,1740712247698,-500.0,0.00058078,120]
[354812643,1740712247707,-500.0,0.00058078,120]
[354812644,1740712247717,-408.51778185,0.00058078,120]
[354812645,1740712247726,-500.0,0.00058078,120]
[354812646,1740712247736,-505.31858446,0.00058078,120]
[354812647,1740712247746,-500.0,0.00058078,120]
[354812648,1740712247756,-500.0,0.00058078,120]
[354812649,1740712247766,-500.0,0.00058078,120]
[354812650,1740712247775,-500.0,0.00058078,120]
[354812651,1740712247785,-500.0,0.00058078,120]
[354812652,1740712247794,-500.0,0.00058078,120]
[354812653,1740712247804,-500.0,0.00058078,120]
[354812654,1740712247814,-500.0,0.00058078,120]
[354812655,1740712247823,-500.0,0.00058078,120]
[354812656,1740712247833,-500.0,0.00058078,120]
[354812657,1740712247843,-500.0,0.00058078,120]
[354812658,1740712247852,-500.0,0.00058078,120]
[354812659,1740712247865,-500.0,0.00058078,120]
[354812660,1740712247874,-500.0,0.00058078,120]
[354812661,1740712247884,-500.0,0.00058078,120]
[354812662,1740712247894,-500.0,0.00058078,120]
[354812663,1740712247904,-500.0,0.00058078,120]
[354812664,1740712247913,-500.0,0.00058078,120]
[354812665,1740712247922,-500.0,0.00058078,120]
[354812666,1740712247931,-500.0,0.00058078,120]
[354812667,1740712247941,-233.62006861,0.00058078,120]
[354812668,1740712248033,-500.0,0.00058078,120]
[354812669,1740712248043,-500.0,0.00058078,120]
[354812670,1740712248053,-500.0,0.00058078,120]
[354812671,1740712248062,-502.08080143,0.00058079,120]
[354812672,1740712248072,-500.0,0.00058079,120]
[354812673,1740712248088,-467.12,0.00058082,80]
[354812674,1740712248098,-1054.33,0.000581,30]
[354812675,1740712248108,-151.0,0.000582,21]
[354812676,1740712248123,-201.51,0.000582,30]
[354812677,1740712248135,-3453.20665459,0.00058238,4]
[354812678,1740712248154,-151.0,0.000585,29]
[354812679,1740712248163,-151.0,0.000586,24]
[354812680,1740712248172,-407.33365774,0.00058763,2]
[354812681,1740712248182,-4442.9816588,0.000588,31]
[354812682,1740712248192,-1000.0,0.000588,120]
[354812683,1740712248201,-491.83156636,0.00058862,120]
[354812684,1740712248211,-500.0,0.00058862,120]
[354812685,1740712248223,-203.16655073,0.00058862,120]
[354812686,1740712248235,-500.0,0.00058862,31]
[354812687,1740712248245,-417.7883765,0.00058862,120]
[354812688,1740712248255,-336.24696874,0.00058862,31]
[354812689,1740712248264,-500.0,0.00058862,31]
[354812690,1740712248275,-64672.83548009,0.00058863,30]
[354812691,1740712248383,-66417.0537953,0.00058863,30]
[354812692,1740712250775,-500.0,0.00055336,120]
[354812693,1740712250785,-500.0,0.00055336,120]
[354812694,1740712250794,-508.83655948,0.00055336,120]
[354812695,1740712250804,-566.14,0.00057976,120]
[354812696,1740712250814,-1841.8,0.00058853,10]
[354812697,1740712250824,-56659.04701227,0.00058863,30]
[354812698,1740712251104,-54.0980968,0.00058863,30]
[354812699,1740712251497,-500.0,0.00055238,120]
[354812700,1740712251507,-500.0,0.00055238,120]
[354812701,1740712251517,-10798.33911308,0.00058863,30]
[354812702,1740712251894,-500.0,0.00055336,120]
[354812703,1740712251906,-500.0,0.00057976,120]
[354812704,1740712251915,-18300.04229702,0.00058863,30]
[354812705,1740712252726,-1491.46788456,0.00058863,30]
[354812706,1740712254622,-7819.43337392,0.00058863,30]
[354812707,1740712254843,545.0,0.00049,120]
[354812708,1740712257120,545.0,0.00051,120]
[354812709,1740712259434,545.0,0.00053,120]
[354812710,1740712268719,15790.35208406,0.00070756,120]
[354812711,1740712319731,3457.24914741,0.00049,120]
[354812712,1740712319865,3856.52357403,0.00049,120]
[354812713,1740712319889,1233.22727856,0.00049,120]
[354812714,1740712325936,267.0,0.000253,3]
[354812715,1740712326309,266.0,0.000253,3]
[354812716,1740712346137,622.7660758,0.00045131,2]
[354812717,1740712473508,291.0,0.000253,3]
[354812718,1740712501010,2986.27,0.0003,2]
[354812719,1740712632751,-150.0,0.00044337,2]
[354812720,1740712639481,-150.0,0.00044337,2]
[354812721,1740712640541,-150.0,0.00044337,2]
[354812722,1740712641698,-150.0,0.00044337,2]
[354812723,1740712642264,11824.73,0.0003,7]
[354812724,1740712642291,38175.27,0.0003,7]
[354812725,1740712643098,500.0,0.00027,30]
[354812726,1740712784148,1515.0,0.00025,60]
[354812733,1740713229151,1151.06888486,0.000279,2]
[354812734,1740713230836,-150.0,0.00032877,2]
[354812735,1740713231493,-30.401023,0.00032877,2]
[354812736,1740713231516,-119.598977,0.000329,2]
[354812737,1740713238336,-1031.46990786,0.000329,2]
[354812738,1740713238359,-1151.06888486,0.000379,2]
[354812739,1740713238381,-271.2186754,0.000423,120]
[354812740,1740713238408,-266.244482,0.00043145,120]
[354812741,1740713238430,-1105.5922346,0.00044337,2]
[354812742,1740713238452,-388.86494908,0.000488,120]
[354812743,1740713238473,-550.0,0.00049599,5]
[354812744,1740713238496,-2203.80028072,0.000496,120]
[354812745,1740713251091,-385.57192312,0.000496,120]
[354812746,1740713268665,2743.21719648,0.00071219,120]
[354812749,1740713312728,3597.19318547,0.00027,120]
[354812750,1740713313128,202893.91581026,0.00026,60]
[354812751,1740713313551,3442.12683456,0.00030001,120]
[354812752,1740713314676,1299.55875953,0.00071219,90]
[354812753,1740713315063,906.82198538,0.00023,60]
[354812754,1740713318374,10673.66111514,0.00018,15]
[354812755,1740713318402,28737.37309489,0.00018,15]
[354812756,1740713318429,215.85310535,0.00018,15]
[354812757,1740713318463,150000.0,0.00018,15]
[354812758,1740713318488,97460.25944935,0.00018,15]
[354812759,1740713318513,100000.0,0.00018,15]
[354812760,1740713318534,100000.0,0.00018,15]
[354812761,1740713318559,19431.77594007,0.00018,15]
[354812762,1740713318580,86611.34407155,0.00018,15]
[354812769,1740713348116,-400.0,0.00039799,5]
[354812770,1740713348136,-26147.75377271,0.000398,60]
[354812771,1740713348157,-2227.0062932,0.000399,119]
[354812772,1740713348178,-226.40967253,0.0004,120]
[354812773,1740713348198,-2198.69244239,0.00041,30]
[354812774,1740713348219,-500.0,0.00048867,10]
[354812775,1740713348238,-502.12978651,0.00048867,10]
[354812776,1740713348257,-504.13025905,0.00048867,10]
[354812777,1740713348278,-2410.62779562,0.000496,120]
[354812778,1740713348297,-489.64404527,0.000499,8]
[354812779,1740713348317,-10009.60622463,0.0005,90]
[354812780,1740713348336,-55731.67745394,0.0005,30]
[354812781,1740713351207,-501.82480816,0.00048867,10]
[354812782,1740713351228,-31722.45640599,0.0005,30]
[354812783,1740713353152,-73628.70944499,0.0005,30]
[354812784,1740713364111,-300.02965693,0.00048867,10]
[354812785,1740713364131,-198.58950447,0.00048867,10]
[354812786,1740713364152,-506.29707077,0.00048867,10]
[354812787,1740713364172,-38943.92700252,0.0005,30]
[354812788,1740713364192,-534.10499153,0.0005,120]
[354812789,1740713364212,-827.72594398,0.0005,30]
[354812790,1740713364232,-405.33640899,0.0005,120]
[354812791,1740713364252,-17751.26608692,0.0005,30]
[354812792,1740713365097,-33497.89391308,0.0005,30]
[354812793,1740713365117,-266.244482,0.00050336,120]
[354812794,1740713365140,-410.33234319,0.000509,12]
[354812795,1740713365159,-2882.67,0.0005099,10]
[354812796,1740713365179,-861.8446861,0.00051,120]
[354812797,1740713369206,-6496.31657293,0.00051,120]
[354812798,1740713369232,-1188.83874097,0.00051,120]
[354812799,1740713369253,-2991.82779508,0.00053,120]
[354812803,1740713372081,-5555.17220492,0.00053,120]
[354812804,1740713372101,-2287.0702426,0.00053,120]
[354812805,1740713374111,-8514.43894728,0.00053,120]
[354812832,1740713432697,-1000.0,0.00054346,10]
[354812833,1740713432707,-460.96976057,0.00054794,120]
[354812834,1740713432717,-500.0,0.00054794,120]
[354812835,1740713432726,-1822.28,0.00054794,120]
[354812836,1740713432736,-1822.28,0.00054794,120]
[354812837,1740713432745,-500.0,0.00054804,120]
[354812838,1740713432755,-601.63584147,0.00054805,2]
[354812839,1740713432788,-6223.8653306,0.00054805,2]
[354812840,1740713432797,-260.28834457,0.00054998,30]
[354812852,1740713438549,-239.71165543,0.00054998,30]
[354812853,1740713438558,-224.28834459,0.00054998,20]
[354812855,1740713438570,-275.71165541,0.00054998,20]
[354812856,1740713438580,-314.09812412,0.00054998,120]
[354812857,1740713438591,-185.90187588,0.00054998,120]
[354812858,1740713438600,-489.40532716,0.00054999,120]
[354812859,1740713438612,-1332.87467284,0.00054999,120]
[354812860,1740713438621,-8547.0,0.00055,120]
[354812861,1740713438631,-172.63558751,0.00055037,2]
[354812862,1740713438640,-500.0,0.00055137,120]
[354812863,1740713438649,-1180.71,0.00055137,120]
[354812864,1740713438659,-514.38324664,0.00055137,120]
[354812865,1740713438669,-502.19614334,0.00055137,120]
[354812866,1740713438679,-500.0,0.00055137,120]
[354812867,1740713438688,-2456.89,0.00055137,120]
[354812868,1740713438700,-2910.51,0.00055137,120]
[354812869,1740713438709,-5288.26,0.00055137,120]
[354812870,1740713438720,-4765.2,0.00055137,120]
[354812871,1740713438730,-500.0,0.00055137,120]
[354812872,1740713438739,-862.37,0.00055137,120]
[354812873,1740713438749,-500.0,0.00055137,120]
[354812874,1740713438758,-2167.22,0.00055137,120]
[354812875,1740713438767,-500.0,0.00055137,120]
[354812876,1740713438776,-500.0,0.00055137,120]
[354812877,1740713438786,-500.0,0.00055137,120]
[354812878,1740713438795,-1443.58,0.00055137,120]
[354812879,1740713438805,-500.0,0.00055137,120]
[354812880,1740713438814,-500.0,0.00055137,120]
[354812881,1740713438823,-693.82,0.00055137,120]
[354812882,1740713438832,-500.0,0.00055137,120]
[354812883,1740713438842,-626.8,0.00055137,120]
[354812884,1740713438851,-500.0,0.00055137,120]
[354812885,1740713438860,-500.0,0.00055137,30]
[354812886,1740713438869,-3271.67257434,0.00055137,120]
[354812887,1740713438889,-615.60742566,0.00055137,120]
[354812888,1740713438899,-500.0,0.00055137,120]
[354812889,1740713438908,-2072.15,0.00055137,120]
[354812890,1740713438917,-2548.47,0.00055137,120]
[354812891,1740713438926,-7.85263073,0.00055137,120]
[354812892,1740713438937,-708.51736927,0.00055137,120]
[354812893,1740713438951,-500.0,0.00055137,120]
[354812894,1740713438960,-500.0,0.00055137,120]
[354812895,1740713438970,-1000.0,0.00055137,2]
[354812896,1740713438979,-500.0,0.00055137,120]
[354812897,1740713438988,-500.0,0.00055137,120]
[354812898,1740713438997,-838.44,0.00055137,120]
[354812899,1740713439007,-1166.96,0.00055137,120]
[354812900,1740713439016,-500.0,0.00055137,120]
[354812901,1740713439026,-500.0,0.00055137,120]
[354812902,1740713439036,-2525.18,0.00055137,120]
[354812903,1740713439045,-1133.28,0.00055137,120]
[354812904,1740713439054,-295.36259544,0.00055137,120]
[354812905,1740713439063,-992.16,0.00055137,120]
[354812906,1740713439073,-1822.28,0.00055137,120]
[354812907,1740713439082,-1822.28,0.00055137,120]
[354812908,1740713439091,-1822.28,0.00055137,120]
[354812909,1740713439100,-1822.28,0.00055137,120]
[354812910,1740713439109,-1822.28,0.00055137,120]
[354812911,1740713439118,-1822.28,0.00055137,120]
[354812912,1740713439127,-1202.36,0.00055137,120]
[354812913,1740713439136,-1822.28,0.00055137,120]
[354812914,1740713439145,-1822.28,0.00055137,120]
[354812915,1740713439155,-1822.28,0.00055137,120]
[354812916,1740713439164,-1822.28,0.00055137,120]
[354812917,1740713439174,-1822.28,0.00055137,120]
[354812918,1740713439183,-500.0,0.00055137,120]
[354812919,1740713439193,-500.0,0.00055137,120]
[354812920,1740713439203,-593.23,0.00055137,120]
[354812921,1740713439212,-500.0,0.00055137,120]
[354812922,1740713439221,-500.0,0.00055137,120]
[354812923,1740713439230,-632.48,0.00055137,120]
[354812924,1740713439240,-500.0,0.00055137,120]
[354812925,1740713439249,-500.0,0.00055137,120]
[354812926,1740713439258,-957.08,0.00055137,120]
[354812927,1740713439268,-500.0,0.00055137,21]
[354812928,1740713439277,-1854.27,0.00055137,120]
[354812929,1740713439286,-500.0,0.00055137,120]
[354812930,1740713439295,-2473.3504768,0.00055137,120]
[354812931,1740713439437,-554.9095232,0.00055137,120]
[354812932,1740713439447,-500.0,0.00055137,120]
[354812933,1740713439457,-500.0,0.00055137,120]
[354812934,1740713439468,-220.0204768,0.00055137,120]
[354812935,1740713439480,-279.9795232,0.00055137,120]
[354812936,1740713439489,-500.0,0.00055137,120]
[354812937,1740713439499,-221.06531681,0.00055137,120]
[354812938,1740713439508,-500.0,0.00055137,120]
[354812939,1740713439516,-500.0,0.00055137,120]
[354812940,1740713439526,-500.0,0.00055137,120]
[354812941,1740713439536,-500.0,0.00055137,120]
[354812942,1740713439547,-500.0,0.00055137,120]
[354812943,1740713439556,-500.0,0.00055137,2]
[354812944,1740713439565,-500.0,0.00055137,120]
[354812945,1740713439574,-500.0,0.00055137,120]
[354812946,1740713439583,-501.59771236,0.00055137,120]
[354812947,1740713439593,-500.0,0.00055137,120]
[354812948,1740713439603,-689.91,0.00055137,120]
[354812949,1740713439612,-500.0,0.00055137,120]
[354812950,1740713439621,-500.0,0.00055137,120]
[354812951,1740713439631,-500.0,0.00055137,120]
[354812952,1740713439640,-500.0,0.00055137,2]
[354812953,1740713439652,-500.0,0.00055137,120]
[354812954,1740713439662,-500.0,0.00055137,2]
[354812955,1740713439671,-500.0,0.00055137,120]
[354812956,1740713439681,-500.0,0.00055137,120]
[354812957,1740713439690,-500.0,0.00055137,2]
[354812958,1740713439701,-500.0,0.00055137,120]
[354812959,1740713439711,-500.0,0.00055137,2]
[354812960,1740713439721,-500.0,0.00055137,120]
[354812961,1740713439730,-500.0,0.00055137,120]
[354812962,1740713439739,-500.0,0.00055137,120]
[354812963,1740713439748,-500.0,0.00055137,2]
[354812964,1740713439758,-255.46998817,0.00055137,120]
[354812965,1740713439767,-500.0,0.00055137,120]
[354812966,1740713439777,-500.0,0.00055137,120]
[354812967,1740713439786,-500.0,0.00055137,2]
[354812968,1740713439796,-500.0,0.00055137,120]
[354812969,1740713439805,-500.0,0.00055137,2]
[354812970,1740713439816,-500.0,0.00055137,120]
[354812971,1740713439826,-411.76603252,0.00055137,2]
[354812972,1740713439846,-445.0328622,0.00055137,120]
[354812973,1740713439859,-500.0,0.00055137,2]
[354812974,1740713439870,-318.6195451,0.00055137,120]
[354812975,1740713439881,-500.0,0.00055137,2]
[354812976,1740713439891,-500.0,0.00055137,120]
[354812977,1740713439901,-500.0,0.00055137,2]
[354812978,1740713439912,-500.0,0.00055137,2]
[354812979,1740713439922,-500.0,0.00055137,2]
[354812980,1740713439932,-21463.41281282,0.00055138,2]
[354812981,1740713439960,-5506.20808744,0.00055138,2]
[354812982,1740713439972,-28269.44690607,0.00055138,2]
[354812983,1740713439985,-991.05017998,0.00055138,2]
[354812984,1740713439998,-29573.06806875,0.00055138,2]
[354812985,1740713440010,-76881.28133215,0.00055138,2]
[354812992,1740713440744,-8302.04023817,0.00055138,2]
[354812993,1740713440803,-51013.49237462,0.00055138,2]
[354812994,1740713440813,-190.52613189,0.00055173,15]
[354812995,1740713440822,-500.0,0.00055173,15]
[354812996,1740713440832,-414.91564086,0.00055173,15]
[354812997,1740713440841,-643.54415463,0.00055173,15]
[354812998,1740713440851,-500.0,0.00055173,15]
[354812999,1740713440860,-269.34958146,0.00055173,15]
[354813000,1740713440870,-500.0,0.00055173,15]
[354813001,1740713440880,-500.0,0.00055173,15]
[354813002,1740713440889,-501.61956477,0.00055173,15]
[354813003,1740713440898,-255.93781386,0.00055173,14]
[354813004,1740713440908,-267.81339235,0.00055173,15]
[354813005,1740713440917,-500.0,0.00055236,120]
[354813006,1740713440926,-1822.28,0.00055236,120]
[354813007,1740713440936,-165.06,0.00055237,30]
[354813008,1740713440947,-500.0,0.00055237,120]
[354813011,1740713440963,-500.0,0.00055237,120]
[354813013,1740713440974,-500.0,0.00055237,120]
[354813014,1740713440985,-500.0,0.00055237,20]
[354813015,1740713440995,-500.0,0.00055237,20]
[354813016,1740713441005,-1822.28,0.00055237,120]
[354813017,1740713441017,-1822.28,0.00055237,120]
[354813018,1740713441026,-1822.28,0.00055237,120]
[354813019,1740713441036,-500.0,0.00055237,120]
[354813020,1740713441050,-500.0,0.00055237,120]
[354813021,1740713441064,-512.59483399,0.00055238,120]
[354813022,1740713441073,-500.0,0.00055238,120]
[354813023,1740713441082,-500.0,0.00055238,120]
[354813024,1740713441092,-500.0,0.00055238,120]
[354813025,1740713441101,-508.91893336,0.00055238,120]
[354813026,1740713441111,-500.0,0.00055238,120]
[354813027,1740713441120,-501.85265272,0.00055238,120]
[354813028,1740713441131,-500.0,0.00055238,120]
[354813029,1740713441140,-500.0,0.00055238,120]
[354813030,1740713441149,-500.0,0.00055238,120]
[354813031,1740713441159,-502.48877178,0.00055238,120]
[354813032,1740713441169,-500.0,0.00055238,120]
[354813033,1740713441179,-501.23435587,0.00055238,120]
[354813034,1740713441290,-500.0,0.00055238,120]
[354813035,1740713441300,-500.0,0.00055238,120]
[354813036,1740713441309,-500.0,0.00055238,120]
[354813037,1740713441318,-500.0,0.00055238,120]
[354813038,1740713441327,-500.0,0.00055238,120]
[354813039,1740713441337,-500.0,0.00055238,120]
[354813040,1740713441347,-500.0,0.00055238,120]
[354813041,1740713441356,-547.92700419,0.00055238,120]
[354813042,1740713441365,-1000.0,0.00055238,20]
[354813043,1740713441375,-500.0,0.00055238,120]
[354813044,1740713441384,-500.0,0.00055238,120]
[354813045,1740713441394,-504.7021373,0.00055238,120]
[354813046,1740713441403,-500.0,0.00055238,120]
[354813047,1740713441412,-500.0,0.00055238,120]
[354813048,1740713441421,-500.0,0.00055238,120]
[354813049,1740713441430,-500.0,0.00055238,120]
[354813050,1740713441440,-500.0,0.00055238,120]
[354813051,1740713441454,-500.0,0.00055238,120]
[354813052,1740713441464,-633.75151832,0.00055238,120]
[354813053,1740713441475,-506.04623366,0.00055238,120]
[354813054,1740713441485,-500.0,0.00055238,120]
[354813055,1740713441495,-500.0,0.00055238,120]
[354813056,1740713441505,-500.0,0.00055238,120]
[354813057,1740713441515,-172.63558751,0.00055253,2]
[354813058,1740713441524,-502.24365993,0.00055273,15]
[354813059,1740713441533,-500.0,0.00055273,5]
[354813060,1740713441543,-503.63379618,0.00055273,15]
[354813061,1740713441552,-524.2534289,0.00055273,7]
[354813062,1740713441561,-500.0,0.00055273,7]
[354813063,1740713441570,-500.0,0.00055325,20]
[354813064,1740713441579,-555.08276268,0.00055325,120]
[354813065,1740713441588,-500.0,0.00055334,120]
[354813066,1740713441598,-412.92665499,0.00055334,120]
[354813067,1740713441607,-195.38336833,0.00055334,120]
[354813068,1740713441616,-500.0,0.00055334,31]
[354813069,1740713441625,-500.0,0.00055334,120]
[354813070,1740713441634,-500.0,0.00055334,120]
[354813071,1740713441645,-500.0,0.00055334,31]
[354813072,1740713441654,-486.21574263,0.00055334,120]
[354813073,1740713441664,-500.0,0.00055334,120]
[354813074,1740713441673,-500.0,0.00055334,120]
[354813075,1740713441682,-292.29397298,0.00055334,31]
[354813076,1740713441692,-500.0,0.00055334,120]
[354813077,1740713441705,-474.38672535,0.00055334,120]
[354813078,1740713441715,-500.0,0.00055334,120]
[354813079,1740713441724,-500.0,0.00055334,120]
[354813080,1740713441734,-500.0,0.00055334,120]
[354813081,1740713441743,-500.0,0.00055334,120]
[354813082,1740713441753,-1822.28,0.00055334,120]
[354813083,1740713441762,-1822.28,0.00055334,120]
[354813084,1740713441772,-1822.28,0.00055334,120]
[354813085,1740713441781,-1822.28,0.00055334,120]
[354813086,1740713441790,-1822.28,0.00055334,120]
[354813087,1740713441799,-1822.2981414,0.00055334,120]
[354813088,1740713441809,-500.0,0.00055335,120]
[354813089,1740713441818,-500.0,0.00055335,120]
[354813090,1740713441828,-500.0,0.00055335,120]
[354813091,1740713441837,-500.0,0.00055335,120]
[354813092,1740713441847,-500.0,0.00055335,120]
[354813093,1740713441856,-500.0,0.00055335,120]
[354813094,1740713441866,-803.55,0.00055335,120]
[354813095,1740713441876,-500.0,0.00055335,120]
[354813096,1740713441885,-500.0,0.00055335,120]
[354813097,1740713441894,-500.0,0.00055335,120]
[354813098,1740713441904,-500.0,0.00055335,120]
[354813099,1740713441914,-934.41,0.00055335,120]
[354813100,1740713441923,-500.0,0.00055335,120]
[354813101,1740713441932,-500.0,0.00055335,120]
[354813102,1740713441941,-600.0,0.00055335,120]
[354813103,1740713441953,-500.0,0.00055335,120]
[354813104,1740713441963,-503.5,0.00055335,120]
[354813105,1740713441972,-500.0,0.00055335,120]
[354813106,1740713441981,-500.0,0.00055335,120]
[354813107,1740713441990,-949.31,0.00055335,120]
[354813108,1740713442000,-653.52,0.00055335,120]
[354813109,1740713442009,-501.70377414,0.00055335,120]
[354813110,1740713442018,-500.0,0.00055335,120]
[354813111,1740713442028,-500.0,0.00055335,120]
[354813112,1740713442037,-500.0,0.00055335,120]